fUSD/lending_fUSD_20240213
["ID","MTS","AMOUNT","RATE_DAILY","PERIOD"]
[313902529,1707795049761,-500.0,0.00032876,2]
[313902530,1707795049770,-520.09638933,0.00032876,2]
[313902531,1707795049779,-500.0,0.00032876,2]
[313902532,1707795049787,-500.0,0.00032876,2]
[313902533,1707795049797,-500.0,0.00032876,2]
[313902534,1707795049806,-500.0,0.00032876,2]
[313902535,1707795049815,-508.49773699,0.00032876,2]
[313902536,1707795049825,-500.0,0.00032876,2]
[313902537,1707795049834,-163.81228398,0.00032876,2]
[313902538,1707795049843,-500.0,0.00032876,2]
[313902539,1707795049852,-500.0,0.00032876,2]
[313902540,1707795049861,-500.0,0.00032876,2]
[313902541,1707795049871,-451.75127169,0.00032876,2]
[313902542,1707795049880,-500.0,0.00032876,2]
[313902543,1707795049889,-500.0,0.00032876,2]
[313902544,1707795049899,-519.65117129,0.00032876,2]
[313902545,1707795049910,-519.93038891,0.00032876,2]
[313902546,1707795049919,-500.0,0.00032876,2]
[313902547,1707795049928,-187.09105246,0.00032876,2]
[313902548,1707795049938,-500.0,0.00032876,2]
[313902549,1707795049947,-507.76844973,0.00032876,2]
[313902550,1707795049956,-500.0,0.00032876,2]
[313902551,1707795049966,-500.0,0.00032876,2]
[313902552,1707795049978,-500.0,0.00032876,2]
[313902553,1707795049987,-500.0,0.00032876,2]
[313902554,1707795049997,-500.0,0.00032876,2]
[313902555,1707795050006,-500.0,0.00032876,2]
[313902556,1707795050016,-500.0,0.00032876,2]
[313902557,1707795050026,-500.0,0.00032876,2]
[313902558,1707795050035,-853.05,0.00032876,2]
[313902559,1707795050045,-500.0,0.00032876,2]
[313902560,1707795050055,-500.0,0.00032876,2]
[313902561,1707795050066,-500.0,0.00032876,2]
[313902562,1707795050076,-929.6,0.00032876,2]
[313902563,1707795050086,-500.0,0.00032876,2]
[313902564,1707795050096,-500.0,0.00032876,2]
[313902565,1707795050106,-500.0,0.00032876,2]
[313902566,1707795050115,-500.0,0.00032876,2]
[313902567,1707795050125,-510.13441102,0.00032876,2]
[313902568,1707795050134,-500.0,0.00032876,2]
[313902569,1707795050145,-500.0,0.00032876,2]
[313902570,1707795050157,-564.75134468,0.00032876,2]
[313902571,1707795050166,-500.0,0.00032876,2]
[313902572,1707795050176,-500.0,0.00032876,2]
[313902573,1707795050185,-500.0,0.00032876,2]
[313902574,1707795050195,-500.0,0.00032876,2]
[313902575,1707795050205,-500.0,0.00032876,2]
[313902576,1707795050214,-500.0,0.00032876,2]
[313902577,1707795050224,-500.0,0.00032876,2]
[313902578,1707795050233,-500.0,0.00032876,2]
[313902579,1707795050242,-500.0,0.00032876,2]
[313902580,1707795050252,-412.59212032,0.00032876,2]
[313902581,1707795050262,-500.0,0.00032876,2]
[313902582,1707795050271,-551.77417394,0.00032876,2]
[313902583,1707795050280,-500.0,0.00032876,2]
[313902584,1707795050290,-178.17023795,0.00032876,2]
[313902585,1707795050299,-614.29934485,0.00032876,2]
[313902586,1707795050309,-500.0,0.00032876,2]
[313902587,1707795050318,-513.8703283,0.00032876,2]
[313902588,1707795050327,-500.0,0.00032876,2]
[313902589,1707795050336,-513.7757108,0.00032876,2]
[313902590,1707795050346,-196.2653577,0.00032876,2]
[313902591,1707795052200,236.08207753,0.0002165,2]
[313902592,1707795122705,236.08207753,0.0002165,2]
[313902593,1707795134703,236.08207753,0.0002165,2]
[313902594,1707795156707,236.72138421,0.0002165,2]
[313902595,1707795309217,614.71051042,0.00025786,120]
[313902596,1707795327230,409.80700695,0.00025786,120]
[313902597,1707795347224,341.50583912,0.00025786,120]
[313902598,1707795365229,341.50583912,0.00025786,120]
[313902599,1707795384603,177.92454218,0.00025786,120]
[313902600,1707795402832,177.92454218,0.00025786,120]
[313902601,1707795422630,177.92454218,0.00025786,120]
[313902602,1707795440852,177.92454218,0.00025786,120]
[313902603,1707795458609,177.92454218,0.00025786,120]
[313902604,1707795478983,177.92454218,0.00025786,120]
[313902605,1707795500935,177.92454218,0.00025786,120]
[313902606,1707795520934,177.92454218,0.00025786,120]
[313902607,1707795538937,284.13285818,0.00025786,120]
[313902616,1707796066524,186.01,0.00020198,2]
[313902653,1707796231877,-421.67549177,0.00022884,2]
[313902654,1707796231886,-192.34417473,0.00022885,2]
[313902657,1707796231896,-114.203773,0.00022999,2]
[313902659,1707796231908,-1607.67047447,0.00022999,2]
[313902668,1707796232040,-2507.81196336,0.00022999,2]
[313902669,1707796232052,-985.76549857,0.00022999,2]
[313902670,1707796232061,-3022.601493,0.00023,2]
[313902671,1707796232071,-150.0,0.00024927,2]
[313902672,1707796232081,-1000.0,0.00024928,2]
[313902673,1707796232090,-173.89138771,0.00024928,2]
[313902674,1707796232102,-296.67951861,0.00024928,2]
[313902675,1707796232114,-913.07397378,0.00024928,2]
[313902676,1707796232123,-1569.44425886,0.00024928,2]
[313902783,1707796237824,-345.26574114,0.00024928,2]
[313902784,1707796237834,-150.99,0.00024928,2]
[313902785,1707796237844,-1641.31,0.00024999,2]
[313902786,1707796237854,-499.99,0.00024999,2]
[313902787,1707796237863,-436.22809668,0.00025,2]
[313902788,1707796237872,-511.96172653,0.00025,2]
[313902789,1707796237882,-350.0,0.00025,3]
[313902790,1707796237894,-1592.37015014,0.00025,2]
[313902791,1707796237904,-698.00629012,0.00025127,2]
[313902792,1707796237915,-1256.61818988,0.00025128,2]
[313902793,1707796237925,-209.0,0.00025129,2]
[313902794,1707796237936,-943.33785699,0.00025294,2]
[313902795,1707796237964,-904.16214301,0.00025294,2]
[313902796,1707796237974,-2000.0,0.00025298,2]
[313902797,1707796237985,-255.19,0.00025298,2]
[313902798,1707796237995,-250.0,0.00025317,2]
[313902799,1707796238006,-691.56776946,0.00025446,2]
[313902800,1707796238103,-1007.99886281,0.00025446,2]
[313902801,1707796238117,-1329.01336773,0.00025446,2]
[313902802,1707796238127,-500.0,0.00025446,2]
[313902803,1707796238136,-233.05,0.00025446,2]
[313902804,1707796238156,-306.51,0.00025449,2]
[313902805,1707796238174,-162.26,0.00025468,2]
[313902806,1707796238187,-158.77,0.00025551,2]
[313902807,1707796238202,-2608.47313501,0.00025786,2]
[313902808,1707796238217,-570.71343403,0.00026097,2]
[313902810,1707796238229,-967.21245823,0.00026098,2]
[313902924,1707796240854,-836.9735651,0.00026098,2]
[313902925,1707796241410,-4148.5825451,0.00026098,2]
[313902926,1707796241484,-3656.44512142,0.00026098,2]
[313902927,1707796241500,-1153.55487858,0.00026098,2]
[313902939,1707796242932,-671.89391254,0.00026098,2]
[313902940,1707796242949,-1031.6435404,0.00026098,2]
[313902941,1707796242964,-6988.83299037,0.00026098,2]
[313902942,1707796242980,-873.42255323,0.00026098,2]
[313902943,1707796242994,-5062.37173803,0.00026098,2]
[313902944,1707796243010,-505.3436697,0.00026098,2]
[313902945,1707796243025,-264.48078886,0.00026098,2]
[313902946,1707796243039,-405.76772548,0.00026098,2]
[313902947,1707796243054,-1642.2877028,0.00026098,2]
[313902948,1707796243105,-5495.0083105,0.00026098,2]
[313902949,1707796243120,-259.4268187,0.00026098,2]
[313902950,1707796243165,-1110.88557028,0.00026098,2]
[313902951,1707796243182,-2856.85403804,0.00026098,2]
[313902952,1707796243224,-396.77588872,0.00026098,2]
[313902997,1707796245857,-343.60980816,0.00026097,2]
[313903002,1707796245911,-77.68880591,0.00026097,2]
[313903003,1707796245921,-1004.37473392,0.00026098,2]
[313903004,1707796245933,-42161.23498254,0.00026098,2]
[313903005,1707796245942,-3076.0,0.000261,2]
[313903006,1707796245951,-19941.0,0.000261,2]
[313903007,1707796245960,-158.77,0.00026216,2]
[313903008,1707796245970,-226.52,0.00026621,2]
[313903009,1707796245979,-233.05,0.00026718,2]
[313903010,1707796245988,-158.77,0.00026882,2]
[313903011,1707796245998,-255.19,0.00026942,2]
[313903012,1707796246007,-400.0,0.00027,3]
[313903013,1707796246016,-1121.91925646,0.00027083,2]
[313903014,1707796246026,-165.54378105,0.00027083,2]
[313903015,1707796246035,-23900.0,0.00027131,2]
[313903016,1707796246044,-175.52987962,0.00027183,3]
[313903017,1707796246053,-288.00166788,0.00027183,3]
[313903018,1707796246062,-260.53085168,0.00027183,3]
[313903019,1707796246072,-1000.0,0.00027183,3]
[313903020,1707796246081,-320.02177688,0.00027183,3]
[313903021,1707796246091,-1137.60520801,0.00027183,3]
[313903022,1707796246100,-166.95760433,0.00027183,3]
[313903023,1707796246109,-155.0,0.00027397,2]
[313903024,1707796246119,-210.0,0.0002742,2]
[313903025,1707796246128,-185.48,0.00027558,2]
[313903026,1707796246138,-250.0,0.00027641,2]
[313903027,1707796246148,-50000.0,0.00027911,7]
[313903028,1707796246157,-233.05,0.0002799,2]
[313903029,1707796246167,-226.52,0.00027991,2]
[313903030,1707796246178,-418.48,0.00028028,2]
[313903031,1707796246188,-1121.91925637,0.00028258,2]
[313903032,1707796246197,-165.54378098,0.00028258,2]
[313903033,1707796246207,-255.19,0.00028586,2]
[313903034,1707796246216,-155.0,0.00028767,2]
[313903035,1707796246225,-450.0,0.00029,3]
[313903036,1707796246235,-870.19,0.00029237,2]
[313903037,1707796246244,-233.05,0.00029263,2]
[313903038,1707796246254,-1121.91925637,0.00029432,2]
[313903039,1707796246264,-165.54378098,0.00029432,2]
[313903040,1707796246273,-264.343,0.00029695,2]
[313903041,1707796246283,-1232.0,0.00029695,2]
[313903042,1707796246293,-162.26,0.00029713,2]
[313903043,1707796246302,-1000.0,0.00029899,2]
[313903045,1707796246312,-2367.04,0.00029946,2]
[313903047,1707796246321,-223.49,0.00029946,2]
[313903049,1707796246330,-195.65276359,0.0003,4]
[313903051,1707796246339,-695.09084172,0.0003,2]
[313903052,1707796246348,-4271.95189391,0.0003,2]
[313903053,1707796246360,-698.76108337,0.0003,2]
[313903054,1707796246369,-155.0,0.0003,2]
[313903055,1707796246379,-154.73,0.0003,2]
[313903056,1707796246388,-151.64,0.00030137,2]
[313903057,1707796246398,-171.38825125,0.00030137,2]
[313903058,1707796246407,-255.19,0.0003023,2]
[313903059,1707796246416,-418.48,0.00030292,2]
[313903060,1707796246426,-186.01,0.00030298,2]
[313903061,1707796246436,-233.05,0.00030535,2]
[313903062,1707796246445,-1121.91925637,0.00030607,2]
[313903063,1707796246454,-165.54378098,0.00030607,2]
[313903064,1707796246463,-1778.0,0.000308,5]
[313903065,1707796246473,-209.0,0.00030941,11]
[313903066,1707796246482,-299.96147713,0.00031,4]
[313903067,1707796246504,-500.0,0.00031,3]
[313903068,1707796246514,-1121.91925637,0.00031782,2]
[313903069,1707796246523,-165.54378098,0.00031782,2]
[313903070,1707796246533,-227.64625164,0.000318,2]
[313903071,1707796246543,-151.0,0.00031801,120]
[313903072,1707796246552,-255.19,0.00031874,2]
[313903073,1707796246562,-250.0,0.0003188,2]
[313903074,1707796246571,-177.27,0.000319,2]
[313903075,1707796246581,-276.50072359,0.000319,7]
[313903076,1707796246592,-151.64,0.00031963,2]
[313903077,1707796246602,-462.99043029,0.00032,6]
[313903078,1707796246613,-13625.7318117,0.00032,2]
[313903079,1707796246623,-6415.75493364,0.00032,4]
[313903080,1707796246633,-154.73,0.00032,2]
[313903081,1707796246643,-154.73,0.00032,2]
[313903082,1707796246653,-152.0,0.00032036,3]
[313903083,1707796246662,-363.8359719,0.00032154,2]
[313903084,1707796246672,-500.0,0.00032335,2]
[313903085,1707796246682,-538.7457,0.00032445,2]
[313903086,1707796246692,-177.27,0.00032448,2]
[313903087,1707796246702,-151.0,0.0003245,30]
[313903088,1707796246712,-150.0,0.000325,2]
[313903089,1707796246721,-150.60817484,0.000325,2]
[313903090,1707796246731,-9690.3204777,0.00032545,2]
[313903091,1707796246741,-647.21174135,0.0003255,2]
[313903092,1707796246751,-418.48,0.00032556,2]
[313903093,1707796246760,-200.0,0.00032573,2]
[313903094,1707796246770,-800.0,0.00032573,2]
[313903095,1707796246779,-10150.251568,0.0003259,4]
[313903096,1707796246789,-758.29681398,0.0003259,14]
[313903097,1707796246798,-50944.059431,0.000326,2]
[313903098,1707796246807,-200.0,0.000326,11]
[313903099,1707796246817,-3383.41718934,0.00032685,4]
[313903100,1707796246826,-23683.9203254,0.0003269,4]
[313903101,1707796246836,-1086.063,0.00032695,2]
[313903102,1707796246846,-2000.0,0.000327,4]
[313903103,1707796246856,-26668.6975,0.000327,2]
[313903104,1707796246866,-155.45542209,0.000327,2]
[313903105,1707796246875,-500.0,0.000327,11]
[313903106,1707796246885,-500.0,0.00032703,2]
[313903107,1707796246895,-150.0,0.00032731,2]
[313903108,1707796246905,-150.0,0.00032739,2]
[313903109,1707796246914,-150.0,0.00032742,2]
[313903110,1707796246925,-870.77456838,0.00032748,2]
[313903111,1707796246934,-6766.83437868,0.00032766,4]
[313903112,1707796246944,-870.77456838,0.00032772,2]
[313903113,1707796246954,-903.1138,0.00032776,2]
[313903114,1707796246963,-2563.5579,0.00032776,3]
[313903115,1707796246973,-7279.66688194,0.00032776,4]
[313903116,1707796246983,-150.0,0.00032777,2]
[313903117,1707796246994,-3383.41718934,0.0003278,4]
[313903118,1707796247003,-870.77456838,0.00032783,2]
[313903119,1707796247013,-3383.41718934,0.00032788,4]
[313903120,1707796247023,-49397.93642249,0.0003279,4]
[313903121,1707796247058,-15198.51056524,0.0003279,4]
[313903122,1707796247086,-638.78,0.0003279,4]
[313903123,1707796247100,-6793.90383597,0.0003279,4]
[313903124,1707796247113,-36240.2192353,0.0003279,4]
[313903125,1707796247122,-151.0,0.0003279,7]
[313903126,1707796247133,-174.176231,0.0003279,7]
[313903127,1707796247142,-151.0,0.0003279,7]
[313903128,1707796247154,-151.44898436,0.0003279,2]
[313903129,1707796247164,-1124.21604933,0.00032794,2]
[313903130,1707796247176,-375.78395067,0.00032794,2]
[313903131,1707796247185,-622.62871689,0.00032798,2]
[313903132,1707796247195,-168.26749515,0.00032798,4]
[313903133,1707796247205,-946.10396075,0.00032798,4]
[313903134,1707796247215,-160.34918469,0.00032798,4]
[313903135,1707796247225,-938.20137126,0.00032798,2]
[313903136,1707796247234,-1908.91510247,0.00032798,4]
[313903137,1707796247244,-25889.81733986,0.000328,2]
[313903138,1707796247256,-1309.52212014,0.000328,2]
[313903139,1707796247268,-2824.50000151,0.000328,2]
[313903140,1707796247282,-512.6399146,0.000328,2]
[313903141,1707796247294,-2375.55437671,0.000328,2]
[313903142,1707796247312,-2488.503,0.000328,2]
[313903143,1707796247326,-530.35534409,0.000328,2]
[313903144,1707796247348,-3848.65388206,0.000328,2]
[313903145,1707796247365,-1040.65669349,0.000328,2]
[313903146,1707796247377,-20795.18716279,0.000328,2]
[313903147,1707796247389,-429.38047636,0.000328,2]
[313903148,1707796709923,166.13883622,0.000222,2]
[313903149,1707797168273,155.0,0.0002239,2]
[313903150,1707797215013,5215.4517094,0.0002239,2]
[313903151,1707797219691,1210.28009303,0.0002239,2]
[313903152,1707797222307,200.0,0.00022215,2]
[313903153,1707797238962,336.53570048,0.0002239,2]
[313903154,1707797239631,329.5,0.00022384,2]
[313903155,1707797241591,250.0,0.00022384,2]
[313903156,1707797244780,155.0,0.0002239,2]
[313903157,1707797288002,250.0,0.00021886,2]
[313903158,1707797295662,1210.28009303,0.0002239,2]
[313903159,1707797318396,2705.0,0.00021846,2]
[313903160,1707797322622,155.0,0.0002239,2]
[313903171,1707797369280,397.66,0.00021846,2]
[313903175,1707797382814,460.39,0.00019929,2]
[313903176,1707797383023,460.39,0.00022193,2]
[313903192,1707797432012,-155.0,0.00022392,2]
[313903193,1707797432022,-4401.40331479,0.00022392,2]
[313903194,1707797432066,-814.04839461,0.00022392,2]
[313903195,1707797432075,-4595.77509345,0.00022393,2]
[313903196,1707797432085,-300.0,0.00022395,2]
[313903197,1707797432094,-150.0,0.00022395,2]
[313903198,1707797432105,-150.0,0.00022395,2]
[313903199,1707797432114,-379.11082012,0.00022398,2]
[313903200,1707797432123,-216.77881127,0.00022398,2]
[313903201,1707797432133,-366.83724391,0.00022398,2]
[313903202,1707797432228,-846.47797834,0.00022398,2]
[313903203,1707797432238,-410.92991435,0.00022398,2]
[313903204,1707797432249,-471.78268292,0.00022398,2]
[313903205,1707797432259,-14.12202499,0.00022399,2]
[313903206,1707797432271,-939.7741539,0.00022399,2]
[313903207,1707797432335,-46.10382111,0.00022399,2]
[313903209,1707797432344,-130065.11588681,0.000224,2]
[313903211,1707797432354,-23900.0,0.00022401,2]
[313903213,1707797432363,-935.09,0.00022401,2]
[313903215,1707797432372,-174.68,0.00022493,2]
[313903217,1707797432381,-1369.7339923,0.00022498,2]
[313903219,1707797432391,-999.99,0.00022498,2]
[313903221,1707797432399,-1674.47,0.00022498,2]
[313903223,1707797432408,-499.99,0.00022498,2]
[313903225,1707797432418,-344.96533236,0.000225,2]
[313903227,1707797432427,-248.36056311,0.00022535,2]
[313903229,1707797432437,-156.55,0.00022576,2]
[313903230,1707797432446,-2213.8679,0.00022665,2]
[313903231,1707797432455,-474.9781532,0.00022668,2]
[313903232,1707797432465,-156.55,0.00022707,2]
[313903233,1707797432475,-155.64163146,0.00022763,2]
[313903234,1707797432484,-10580.58550241,0.00022764,2]
[313903235,1707797432494,-22819.41674324,0.00022766,2]
[313903236,1707797432503,-156.55,0.00022837,2]
[313903237,1707797432512,-500.0,0.0002289,2]
[313903238,1707797432522,-315.87535488,0.00022897,2]
[313903247,1707797438057,-200.74889365,0.00022897,2]
[313903248,1707797438067,-3722.79042919,0.000229,2]
[313903249,1707797438078,-279.72697081,0.000229,2]
[313903250,1707797438087,-75.93492975,0.000229,2]
[313903251,1707797438111,-254.9436394,0.000229,2]
[313903252,1707797438120,-156.55,0.00022968,2]
[313903253,1707797438130,-471.78268284,0.00022973,2]
[313903254,1707797438139,-2000.0,0.0002299,2]
[313903255,1707797438149,-155.0,0.00022998,2]
[313903256,1707797438159,-704.41082806,0.00022998,2]
[313903257,1707797438168,-247.3175067,0.00022998,2]
[313903258,1707797438179,-1262.54567766,0.00022998,2]
[313903259,1707797438189,-13979.01845508,0.00022999,2]
[313903260,1707797438198,-74823.58772081,0.00023,2]
[313903261,1707797438208,-64372.84348965,0.00023,2]
[313903262,1707797438220,-399.93830298,0.00023,2]
[313903263,1707797438236,-8567.84889268,0.00023,2]
[313903264,1707797438248,-1506.03932303,0.00023,2]
[313903265,1707797438259,-1679.16984267,0.00023,2]
[313903266,1707797438272,-759.73330431,0.00023,2]
[313903267,1707797438292,-775.44461026,0.00023,2]
[313903268,1707797438303,-421.8691159,0.00023,2]
[313903269,1707797438384,-6774.60000259,0.00023,2]
[313903270,1707797438397,-738.29110267,0.00023,2]
[313903271,1707797438409,-741.27723955,0.00023,2]
[313903272,1707797438421,-420.8888349,0.00023,2]
[313903273,1707797438433,-313.89851893,0.00023,2]
[313903274,1707797438448,-24633.69709952,0.00023,2]
[313903275,1707797438457,-8108.35,0.00023,2]
[313903276,1707797438467,-156.55,0.00023099,2]
[313903277,1707797438476,-156.55,0.00023229,2]
[313903278,1707797438485,-156.55,0.0002336,2]
[313903279,1707797438494,-397.66,0.0002349,2]
[313903281,1707797438503,-156.55,0.00023491,2]
[313903283,1707797438513,-471.78268284,0.00023548,2]
[313903285,1707797438522,-156.55,0.00023622,2]
[313903287,1707797438531,-156.55,0.00023752,2]
[313903289,1707797438540,-471.78268284,0.00024123,2]
[313903291,1707797438550,-215.77,0.0002413,2]
[313903293,1707797438559,-300.0,0.00024326,2]
[313903295,1707797438568,-2218.79,0.00024384,2]
[313903297,1707797438577,-797.74,0.00024384,2]
[313903299,1707797438587,-460.39,0.00024456,2]
[313903301,1707797438596,-210.0,0.00024634,2]
[313903304,1707797438605,-210.0,0.00024634,2]
[313903307,1707797438614,-471.78268284,0.00024698,2]
[313903310,1707797438623,-577.44963808,0.0002479,2]
[313903313,1707797438632,-577.44963805,0.0002479,2]
[313903316,1707797438641,-165.54378098,0.00024799,2]
[313903318,1707797438651,-537.23173443,0.00025,2]
[313903320,1707797438660,-1255.06163609,0.00025,2]
[313903369,1707797441623,-1.55655379,0.00025,2]
[313903371,1707797441632,-168.22521568,0.00025,2]
[313903373,1707797441642,-1097.41821553,0.00025,2]
[313903398,1707797444404,-812.74863477,0.00025,2]
[313903399,1707797444414,-29.37621427,0.00025009,2]
[313903400,1707797444425,-301.50235484,0.00025009,2]
[313903401,1707797444434,-162.27,0.00025085,2]
[313903402,1707797444443,-397.66,0.00025134,2]
[313903403,1707797444656,-935.09,0.00025201,2]
[313903404,1707797444665,-471.78268284,0.00025273,2]
[313903405,1707797444675,-577.44963805,0.00025714,2]
[313903406,1707797444686,-471.78268284,0.00025848,2]
[313903407,1707797444697,-1118.56346431,0.00026096,2]
[313903408,1707797444706,-728.36,0.00026098,2]
[313903409,1707797444715,-712.04,0.00026098,2]
[313903410,1707797444725,-7602.23236597,0.000261,2]
[313903411,1707797444767,-849.60543571,0.000261,2]
[313903412,1707797444779,-6452.74581236,0.000261,2]
[313903413,1707797444791,-1876.61147604,0.000261,2]
[313903414,1707797444803,-2968.80490992,0.000261,2]
[313903415,1707797444813,-2922.0,0.000261,2]
[313903416,1707797444822,-81.95209021,0.00026141,2]
[313903417,1707797444843,-83.59169077,0.00026141,2]
[313903418,1707797444853,-414.26101736,0.00026423,2]
[313903419,1707797444866,-57.52166548,0.00026423,2]
[313903420,1707797444876,-460.39,0.0002672,2]
[313903421,1707797444885,-397.66,0.00026778,2]
[313903422,1707797444895,-471.78268284,0.00026998,2]
[313903423,1707797444905,-330.87856911,0.00027117,3]
[313903424,1707797444914,-1078.24702172,0.00027183,3]
[313903425,1707797444927,-5271.51351703,0.00027183,3]
[313903426,1707797444940,-928.94955755,0.00027183,3]
[313903427,1707797444953,-2757.74871799,0.00027183,3]
[313903428,1707797444962,-1000.0,0.00027183,3]
[313903429,1707797444972,-2484.02355654,0.00027183,3]
[313903430,1707797444982,-478.02599797,0.00027183,3]
[313903431,1707797444992,-175.52987962,0.00027183,3]
[313903432,1707797445001,-1000.0,0.00027183,3]
[313903433,1707797445010,-153.68550375,0.00027183,3]
[313903434,1707797445020,-577.44963805,0.00027421,2]
[313903435,1707797445033,-471.78268284,0.00027573,2]
[313903436,1707797445043,-580.00527885,0.00028001,2]
[313903437,1707797445057,-355.08472115,0.00028001,2]
[313903438,1707797445068,-1097.10859293,0.000281,2]
[313903439,1707797445183,-527.60914326,0.000281,2]
[313903440,1707797445197,-10397.02196257,0.000281,2]
[313903441,1707797445207,-471.78268284,0.00028149,2]
[313903442,1707797445217,-397.66,0.00028422,2]
[313903444,1707797445227,-2611.497,0.00028637,2]
[313903446,1707797445236,-343.63835459,0.00028637,2]
[313903448,1707797446135,-93.00664541,0.00028637,2]
[313903449,1707797446145,-471.78268284,0.00028724,2]
[313903450,1707797446155,-460.39,0.00028984,2]
[313903451,1707797446164,-150.1,0.00029,2]
[313903452,1707797446174,-577.44963805,0.00029128,2]
[313903453,1707797446183,-330.87856911,0.00029226,4]
[313903454,1707797446193,-471.78268284,0.00029299,2]
[313903455,1707797446203,-344.28028363,0.00029695,6]
[313903456,1707797446212,-270.08240238,0.00029695,2]
[313903457,1707797446224,-229.91759762,0.00029695,2]
[313903458,1707797446233,-500.0,0.00029695,2]
[313903459,1707797446242,-500.0,0.00029695,2]
[313903460,1707797446251,-500.0,0.00029695,2]
[313903461,1707797446260,-500.0,0.00029695,2]
[313903462,1707797446269,-500.0,0.00029695,2]
[313903463,1707797446279,-500.0,0.00029695,2]
[313903464,1707797446288,-500.0,0.00029695,2]
[313903465,1707797446298,-500.0,0.00029695,2]
[313903466,1707797446308,-500.0,0.00029695,2]
[313903467,1707797446318,-500.0,0.00029695,2]
[313903468,1707797446327,-500.0,0.00029695,2]
[313903469,1707797446337,-500.0,0.00029695,2]
[313903470,1707797446346,-217.61026306,0.00029695,2]
[313903471,1707797446365,-282.38973694,0.00029695,2]
[313903472,1707797446374,-712.301,0.00029695,2]
[313903473,1707797446383,-471.78268284,0.00029874,2]
[313903474,1707797446393,-250.0,0.00029946,2]
[313903475,1707797446403,-165.54378098,0.00029981,2]
[313903476,1707797446412,-159.6199075,0.0003,4]
[313903477,1707797446422,-2913.74315317,0.0003,4]
[313903478,1707797446435,-1040.92958151,0.0003,4]
[313903479,1707797446447,-302.52014702,0.0003,4]
[313903483,1707797593930,1019.0666,0.00022293,2]
[313903484,1707798126884,183.3,0.00022,4]
[313903485,1707798126912,107.70534479,0.00022,4]
[313903486,1707798140811,860.50106362,0.00022293,4]
[313903487,1707798158641,856.59911693,0.00022293,4]
[313903488,1707798197015,600.3733752,0.00022293,4]
[313903489,1707798484891,1000.0,0.0002239,2]
[313903516,1707798632208,-155.0,0.00023319,2]
[313903517,1707798632217,-336.67029575,0.0002332,2]
[313903518,1707798632229,-8.61970425,0.0002332,2]
[313903519,1707798632239,-157.60276263,0.00024721,2]
[313903520,1707798632248,-1880.53384834,0.00024808,2]
[313903521,1707798632308,-1474.84893475,0.00024808,2]
[313903522,1707798632471,-492.18609625,0.00024808,2]
[313903523,1707798632483,-1367.88283006,0.00024808,2]
[313903524,1707798632493,-533.55285926,0.00024809,2]
[313903525,1707798632505,-2742.00236626,0.00024809,2]
[313903526,1707798632517,-969.15350083,0.00024809,2]
[313903544,1707798638321,-351.0663671,0.00024809,2]
[313903545,1707798638331,-150.0,0.0002481,2]
[313903546,1707798638341,-727.5,0.0002484,2]
[313903547,1707798638351,-776.47402851,0.0002484,2]
[313903548,1707798638361,-60.2273607,0.0002484,2]
[313903549,1707798638432,-649.8926393,0.0002484,2]
[313903550,1707798638442,-433.35611699,0.00024937,2]
[313903551,1707798638454,-301.51388301,0.00024937,2]
[313903552,1707798638464,-733.97,0.00024941,2]
[313903553,1707798638473,-722.35,0.00024964,2]
[313903554,1707798638483,-721.42,0.0002497,2]
[313903555,1707798638492,-720.6,0.00024993,2]
[313903556,1707798638502,-718.02,0.00024998,2]
[313903557,1707798638512,-710.49,0.00024999,2]
[313903558,1707798638521,-722.89,0.00024999,2]
[313903559,1707798638531,-350.0,0.00025,3]